[Event "Titled Tuesday Blitz April 25 Early 2023"]
[White "Balla, Tamas-Kristof"]
[Black "Lund, Gunnar"]
[WhiteFideId "1208497"]
[BlackFideId "1520814"]
[WhiteElo "2334"]
[BlackElo "2233"]
[Result "0-1"]
[Round "07"]
[TimeControl "180+2"]
[Date "2023.04.25"]
[WhiteClock "0:00:03"]
[BlackClock "0:00:40"]

1. e4 {[%clk 0:03:00]}  e5 {[%clk 0:02:55]} 2. Nf3 {[%clk 0:02:58]}  Nc6 {[%clk 0:02:56]} 3. d4 {[%clk 0:02:58]}  exd4 {[%clk 0:02:56]} 4. Nxd4 {[%clk 0:02:59]}  Nf6 {[%clk 0:02:56]} 5. Nxc6 {[%clk 0:02:58]}  bxc6 {[%clk 0:02:55]} 6. e5 {[%clk 0:02:59]}  Qe7 {[%clk 0:02:55]} 7. Qe2 {[%clk 0:03:00]}  Nd5 {[%clk 0:02:54]} 8. h4 {[%clk 0:03:00]}  a5 {[%clk 0:02:52]} 9. c4 {[%clk 0:03:00]}  Ba6 {[%clk 0:02:52]} 10. Nd2 {[%clk 0:03:01]}  Nb4 {[%clk 0:02:47]} 11. Nf3 {[%clk 0:02:56]}  g6 {[%clk 0:02:40]} 12. a3 {[%clk 0:02:55]}  Nd5 {[%clk 0:02:40]} 13. h5 {[%clk 0:02:47]}  Nb6 {[%clk 0:02:35]} 14. g3 {[%clk 0:02:14]}  Bxc4 {[%clk 0:02:34]} 15. Qe4 {[%clk 0:02:09]}  Bd5 {[%clk 0:02:28]} 16. Qf4 {[%clk 0:01:19]}  Bxf3 {[%clk 0:02:28]} 17. Qxf3 {[%clk 0:01:20]}  Qxe5+ {[%clk 0:02:28]} 18. Be2 {[%clk 0:01:16]}  O-O-O {[%clk 0:02:18]} 19. Bf4 {[%clk 0:01:11]}  Qd5 {[%clk 0:02:15]} 20. O-O {[%clk 0:00:49]}  Qxf3 {[%clk 0:02:13]} 21. Bxf3 {[%clk 0:00:50]}  Bg7 {[%clk 0:02:11]} 22. Rab1 {[%clk 0:00:47]}  Kb7 {[%clk 0:02:03]} 23. b4 {[%clk 0:00:47]}  axb4 {[%clk 0:02:03]} 24. axb4 {[%clk 0:00:45]}  d5 {[%clk 0:01:39]} 25. b5 {[%clk 0:00:44]}  c5 {[%clk 0:01:38]} 26. h6 {[%clk 0:00:35]}  Bd4 {[%clk 0:01:37]} 27. Rfe1 {[%clk 0:00:27]}  Rhe8 {[%clk 0:01:34]} 28. Kg2 {[%clk 0:00:26]}  f6 {[%clk 0:01:33]} 29. Red1 {[%clk 0:00:19]}  g5 {[%clk 0:01:32]} 30. Bd2 {[%clk 0:00:19]}  Ra8 {[%clk 0:01:30]} 31. Bh5 {[%clk 0:00:19]}  Re7 {[%clk 0:01:27]} 32. Bg4 {[%clk 0:00:19]}  Ra2 {[%clk 0:01:25]} 33. Be1 {[%clk 0:00:11]}  Re5 {[%clk 0:01:14]} 34. Bf3 {[%clk 0:00:09]}  Nc4 {[%clk 0:01:14]} 35. Rb3 {[%clk 0:00:05]}  Kb6 {[%clk 0:01:06]} 36. Kg1 {[%clk 0:00:04]}  Rxe1+ {[%clk 0:01:05]} 37. Rxe1 {[%clk 0:00:04]}  Bxf2+ {[%clk 0:01:05]} 38. Kf1 {[%clk 0:00:05]}  Bxe1 {[%clk 0:01:01]} 39. Kxe1 {[%clk 0:00:06]}  Nd2 {[%clk 0:00:53]} 40. Rd3 {[%clk 0:00:04]}  Nxf3+ {[%clk 0:00:47]} 41. Rxf3 {[%clk 0:00:05]}  Kxb5 {[%clk 0:00:47]} 42. Rxf6 {[%clk 0:00:06]}  Ra6 {[%clk 0:00:47]} 43. Rf7 {[%clk 0:00:05]}  Rxh6 {[%clk 0:00:47]} 44. Rxc7 {[%clk 0:00:05]}  Rh2 {[%clk 0:00:46]} 45. Rg7 {[%clk 0:00:05]}  h6 {[%clk 0:00:45]} 46. Rg6 {[%clk 0:00:06]}  c4 {[%clk 0:00:44]} 47. Kd1 {[%clk 0:00:05]}  c3 {[%clk 0:00:43]} 48. g4 {[%clk 0:00:06]}  d4 {[%clk 0:00:43]} 49. Re6 {[%clk 0:00:05]}  d3 {[%clk 0:00:43]} 50. Re1 {[%clk 0:00:03]}  Ra2 {[%clk 0:00:42]} 51. Re5+ {[%clk 0:00:02]}  Kc4 {[%clk 0:00:42]} 52. Ke1 {[%clk 0:00:02]}  Re2+ {[%clk 0:00:38]} 53. Rxe2 {[%clk 0:00:02]}  dxe2 {[%clk 0:00:39]} 54. Kxe2 {[%clk 0:00:03]}  Kb3 {[%clk 0:00:40]} 0-1


[Site "https://www.chess.com"]

[Event "Titled Tuesday Blitz April 25 Early 2023"]
[White "SashaKuzhilniy"]
[Black "Bochnicka, Vladimir"]
[BlackFideId "14943450"]
[WhiteElo "2559"]
[BlackElo "2094"]
[Result "0-1"]
[Round "07"]
[TimeControl "180+2"]
[Date "2023.04.25"]
[WhiteClock "0:00:18"]
[BlackClock "0:00:11"]

1. b3 {[%clk 0:02:53]}  e5 {[%clk 0:02:59]} 2. Bb2 {[%clk 0:02:54]}  Nc6 {[%clk 0:02:58]} 3. c4 {[%clk 0:02:53]}  Nf6 {[%clk 0:02:58]} 4. e3 {[%clk 0:02:53]}  d5 {[%clk 0:02:59]} 5. cxd5 {[%clk 0:02:54]}  Nxd5 {[%clk 0:02:59]} 6. a3 {[%clk 0:02:54]}  Be6 {[%clk 0:02:59]} 7. d3 {[%clk 0:02:54]}  Be7 {[%clk 0:02:58]} 8. Nf3 {[%clk 0:02:53]}  f6 {[%clk 0:02:56]} 9. Nbd2 {[%clk 0:02:54]}  O-O {[%clk 0:02:57]} 10. Be2 {[%clk 0:02:54]}  Qe8 {[%clk 0:02:56]} 11. O-O {[%clk 0:02:53]}  Qf7 {[%clk 0:02:56]} 12. b4 {[%clk 0:02:52]}  a6 {[%clk 0:02:55]} 13. Rc1 {[%clk 0:02:51]}  Rad8 {[%clk 0:02:54]} 14. Ne4 {[%clk 0:02:51]}  Nb6 {[%clk 0:02:46]} 15. Nc5 {[%clk 0:02:48]}  Bxc5 {[%clk 0:02:42]} 16. Rxc5 {[%clk 0:02:49]}  Bb3 {[%clk 0:02:37]} 17. Qa1 {[%clk 0:02:49]}  Na4 {[%clk 0:02:32]} 18. Rcc1 {[%clk 0:02:48]}  Nxb2 {[%clk 0:02:31]} 19. Qxb2 {[%clk 0:02:49]}  Rd7 {[%clk 0:02:18]} 20. Rc3 {[%clk 0:02:48]}  Be6 {[%clk 0:02:17]} 21. Rfc1 {[%clk 0:02:48]}  Rfd8 {[%clk 0:02:17]} 22. b5 {[%clk 0:02:39]}  Na5 {[%clk 0:01:46]} 23. bxa6 {[%clk 0:02:38]}  bxa6 {[%clk 0:01:47]} 24. Qb4 {[%clk 0:02:11]}  Nb3 {[%clk 0:01:22]} 25. Rb1 {[%clk 0:02:08]}  c5 {[%clk 0:01:08]} 26. Qa4 {[%clk 0:01:37]}  c4 {[%clk 0:01:06]} 27. dxc4 {[%clk 0:01:37]}  Nd2 {[%clk 0:01:06]} 28. Nxd2 {[%clk 0:01:32]}  Rxd2 {[%clk 0:01:06]} 29. Bf1 {[%clk 0:01:32]}  h6 {[%clk 0:00:59]} 30. c5 {[%clk 0:01:29]}  Bf5 {[%clk 0:00:46]} 31. Rbc1 {[%clk 0:01:20]}  Kh7 {[%clk 0:00:37]} 32. c6 {[%clk 0:01:18]}  Qc7 {[%clk 0:00:25]} 33. Qxa6 {[%clk 0:01:18]}  Rb2 {[%clk 0:00:19]} 34. Bd3 {[%clk 0:01:07]}  e4 {[%clk 0:00:16]} 35. Bc2 {[%clk 0:00:42]}  Rd2 {[%clk 0:00:16]} 36. h3 {[%clk 0:00:39]}  Qe5 {[%clk 0:00:16]} 37. Qc4 {[%clk 0:00:33]}  Bxh3 {[%clk 0:00:15]} 38. Qxe4+ {[%clk 0:00:31]}  Qxe4 {[%clk 0:00:12]} 39. Bxe4+ {[%clk 0:00:32]}  f5 {[%clk 0:00:13]} 40. gxh3 {[%clk 0:00:32]}  fxe4 {[%clk 0:00:13]} 41. Rf1 {[%clk 0:00:21]}  Rbc2 {[%clk 0:00:13]} 42. Rxc2 {[%clk 0:00:20]}  Rxc2 {[%clk 0:00:14]} 43. Rd1 {[%clk 0:00:19]}  Rxc6 {[%clk 0:00:15]} 44. Rd4 {[%clk 0:00:19]}  Re6 {[%clk 0:00:15]} 45. Kf1 {[%clk 0:00:18]}  Kg6 {[%clk 0:00:16]} 46. a4 {[%clk 0:00:18]}  Kg5 {[%clk 0:00:16]} 47. Kg2 {[%clk 0:00:18]}  Kf5 {[%clk 0:00:16]} 48. Kg3 {[%clk 0:00:18]}  g5 {[%clk 0:00:16]} 49. Rb4 {[%clk 0:00:19]}  Kg6 {[%clk 0:00:15]} 50. a5 {[%clk 0:00:18]}  Kf7 {[%clk 0:00:14]} 51. Rb7+ {[%clk 0:00:18]}  Kg8 {[%clk 0:00:11]} 52. Rb6 {[%clk 0:00:19]}  Re5 {[%clk 0:00:11]} 53. Rb5 {[%clk 0:00:18]}  Rxb5 {[%clk 0:00:11]} 54. a6 {[%clk 0:00:18]}  Ra5 {[%clk 0:00:11]} 0-1


[Site "https://www.chess.com"]

[Event "Titled Tuesday Blitz April 25 Early 2023"]
[White "Shevtchenko, Olesya"]
[Black "Toktomushev, Teimur"]
[WhiteFideId "24131890"]
[BlackFideId "14176726"]
[WhiteElo "2003"]
[BlackElo "2116"]
[Result "1-0"]
[Round "07"]
[TimeControl "180+2"]
[Date "2023.04.25"]
[WhiteClock "0:01:56"]
[BlackClock "0:00:03"]

1. e4 {[%clk 0:03:00]}  c5 {[%clk 0:02:58]} 2. Nf3 {[%clk 0:02:59]}  e6 {[%clk 0:02:58]} 3. d4 {[%clk 0:03:00]}  cxd4 {[%clk 0:02:59]} 4. Nxd4 {[%clk 0:03:01]}  a6 {[%clk 0:02:59]} 5. Nc3 {[%clk 0:03:02]}  b5 {[%clk 0:02:59]} 6. Qd3 {[%clk 0:03:00]}  Bb7 {[%clk 0:02:48]} 7. a3 {[%clk 0:02:59]}  Nc6 {[%clk 0:02:39]} 8. Nxc6 {[%clk 0:02:57]}  Bxc6 {[%clk 0:02:40]} 9. Qg3 {[%clk 0:02:57]}  Nf6 {[%clk 0:01:31]} 10. Bd3 {[%clk 0:02:56]}  h5 {[%clk 0:00:49]} 11. h4 {[%clk 0:02:49]}  Bc5 {[%clk 0:00:24]} 12. e5 {[%clk 0:02:36]}  Ng4 {[%clk 0:00:24]} 13. O-O {[%clk 0:02:27]}  d6 {[%clk 0:00:16]} 14. exd6 {[%clk 0:02:18]}  Bxd6 {[%clk 0:00:14]} 15. Bf4 {[%clk 0:02:18]}  e5 {[%clk 0:00:11]} 16. Bg5 {[%clk 0:02:18]}  Qc7 {[%clk 0:00:07]} 17. Ne4 {[%clk 0:02:12]}  O-O {[%clk 0:00:04]} 18. f3 {[%clk 0:02:08]}  Bxe4 {[%clk 0:00:02]} 19. Bxe4 {[%clk 0:02:07]}  Bc5+ {[%clk 0:00:02]} 20. Kh1 {[%clk 0:02:06]}  Ne3 {[%clk 0:00:02]} 21. Rfe1 {[%clk 0:02:04]}  Nc4 {[%clk 0:00:01]} 22. Bf6 {[%clk 0:02:00]}  g6 {[%clk 0:00:01]} 23. Bxg6 {[%clk 0:01:59]}  Bf2 {[%clk 0:00:02]} 24. Bh7+ {[%clk 0:01:57]}  Kxh7 {[%clk 0:00:03]} 25. Qg7# {[%clk 0:01:56]} 1-0


[Site "https://www.chess.com"]

[Event "Titled Tuesday Blitz April 25 Early 2023"]
[White "Reprintsev, Alexander"]
[Black "Ardila, Oscar Humberto"]
[WhiteFideId "14100541"]
[BlackFideId "4404742"]
[WhiteElo "2211"]
[BlackElo "1918"]
[Result "1-0"]
[Round "07"]
[TimeControl "180+2"]
[Date "2023.04.25"]
[WhiteClock "0:00:29"]
[BlackClock "0:00:04"]

1. e4 {[%clk 0:02:53]}  e5 {[%clk 0:02:59]} 2. Nf3 {[%clk 0:02:52]}  Nf6 {[%clk 0:02:58]} 3. d4 {[%clk 0:02:48]}  Nxe4 {[%clk 0:02:57]} 4. Bd3 {[%clk 0:02:47]}  d5 {[%clk 0:02:57]} 5. Nxe5 {[%clk 0:02:47]}  Nf6 {[%clk 0:02:56]} 6. Bg5 {[%clk 0:02:28]}  Be7 {[%clk 0:02:55]} 7. O-O {[%clk 0:02:25]}  O-O {[%clk 0:02:55]} 8. Nd2 {[%clk 0:02:23]}  Nc6 {[%clk 0:02:53]} 9. c3 {[%clk 0:02:22]}  Nxe5 {[%clk 0:02:51]} 10. dxe5 {[%clk 0:02:21]}  Ng4 {[%clk 0:02:47]} 11. Bf4 {[%clk 0:02:12]}  Bc5 {[%clk 0:02:19]} 12. Bg3 {[%clk 0:01:52]}  Re8 {[%clk 0:02:13]} 13. Nf3 {[%clk 0:01:47]}  f6 {[%clk 0:02:06]} 14. Qc2 {[%clk 0:01:42]}  Nxe5 {[%clk 0:01:44]} 15. Bxh7+ {[%clk 0:01:41]}  Kh8 {[%clk 0:01:44]} 16. Nh4 {[%clk 0:01:30]}  g5 {[%clk 0:01:19]} 17. Ng6+ {[%clk 0:01:29]}  Kg7 {[%clk 0:01:17]} 18. Nxe5 {[%clk 0:01:29]}  Rxe5 {[%clk 0:01:07]} 19. Qg6+ {[%clk 0:01:28]}  Kh8 {[%clk 0:01:02]} 20. Bxe5 {[%clk 0:01:26]}  fxe5 {[%clk 0:01:02]} 21. Qh5 {[%clk 0:01:22]}  Kg7 {[%clk 0:00:58]} 22. Bg6 {[%clk 0:01:18]}  Be6 {[%clk 0:00:47]} 23. Rae1 {[%clk 0:01:14]}  Bd6 {[%clk 0:00:41]} 24. Qh7+ {[%clk 0:01:12]}  Kf6 {[%clk 0:00:40]} 25. c4 {[%clk 0:01:04]}  c6 {[%clk 0:00:38]} 26. Bc2 {[%clk 0:00:57]}  Qg8 {[%clk 0:00:34]} 27. Qh6+ {[%clk 0:00:56]}  Ke7 {[%clk 0:00:30]} 28. cxd5 {[%clk 0:00:56]}  cxd5 {[%clk 0:00:30]} 29. Bb3 {[%clk 0:00:56]}  Rf8 {[%clk 0:00:26]} 30. Re3 {[%clk 0:00:54]}  Rf6 {[%clk 0:00:25]} 31. Qh5 {[%clk 0:00:52]}  Bf7 {[%clk 0:00:23]} 32. Qd1 {[%clk 0:00:51]}  Kf8 {[%clk 0:00:18]} 33. Rc3 {[%clk 0:00:43]}  Kg7 {[%clk 0:00:17]} 34. Rd3 {[%clk 0:00:41]}  d4 {[%clk 0:00:14]} 35. Rh3 {[%clk 0:00:37]}  Bxb3 {[%clk 0:00:13]} 36. axb3 {[%clk 0:00:36]}  Qe6 {[%clk 0:00:10]} 37. Qh5 {[%clk 0:00:35]}  Rh6 {[%clk 0:00:10]} 38. Qxh6+ {[%clk 0:00:35]}  Qxh6 {[%clk 0:00:10]} 39. Rxh6 {[%clk 0:00:36]}  Kxh6 {[%clk 0:00:11]} 40. f3 {[%clk 0:00:36]}  Kg6 {[%clk 0:00:11]} 41. Kf2 {[%clk 0:00:36]}  Kf5 {[%clk 0:00:11]} 42. g4+ {[%clk 0:00:36]}  Kf6 {[%clk 0:00:11]} 43. Ke2 {[%clk 0:00:36]}  a6 {[%clk 0:00:11]} 44. Kd3 {[%clk 0:00:36]}  Bb4 {[%clk 0:00:07]} 45. Rc1 {[%clk 0:00:34]}  Bd6 {[%clk 0:00:06]} 46. Rc8 {[%clk 0:00:33]}  Ke6 {[%clk 0:00:06]} 47. Rg8 {[%clk 0:00:30]}  Be7 {[%clk 0:00:05]} 48. Ke4 {[%clk 0:00:29]}  b5 {[%clk 0:00:04]} 49. Ra8 {[%clk 0:00:29]} 1-0


[Site "https://www.chess.com"]

[Event "Titled Tuesday Blitz April 25 Early 2023"]
[White "polandchessplayer"]
[Black "Gonzalez Zamora, Juan Carlos"]
[BlackFideId "3507548"]
[WhiteElo "2601"]
[BlackElo "2535"]
[Result "1-0"]
[Round "07"]
[TimeControl "180+2"]
[Date "2023.04.25"]
[WhiteClock "0:00:11"]
[BlackClock "0:00:02"]

1. d4 {[%clk 0:03:00]}  Nf6 {[%clk 0:02:59]} 2. Nf3 {[%clk 0:03:00]}  g6 {[%clk 0:02:59]} 3. g3 {[%clk 0:03:01]}  Bg7 {[%clk 0:03:00]} 4. Bg2 {[%clk 0:03:02]}  O-O {[%clk 0:03:00]} 5. O-O {[%clk 0:03:03]}  d6 {[%clk 0:03:01]} 6. c4 {[%clk 0:03:03]}  Nc6 {[%clk 0:03:01]} 7. Nc3 {[%clk 0:03:03]}  Bg4 {[%clk 0:03:01]} 8. Bg5 {[%clk 0:03:00]}  h6 {[%clk 0:02:54]} 9. Be3 {[%clk 0:02:57]}  Nd7 {[%clk 0:02:41]} 10. Qd2 {[%clk 0:02:52]}  Kh7 {[%clk 0:02:39]} 11. d5 {[%clk 0:02:46]}  Bxf3 {[%clk 0:02:38]} 12. Bxf3 {[%clk 0:02:45]}  Nce5 {[%clk 0:02:38]} 13. b3 {[%clk 0:02:44]}  Nxf3+ {[%clk 0:02:36]} 14. exf3 {[%clk 0:02:45]}  Ne5 {[%clk 0:02:35]} 15. Kg2 {[%clk 0:02:46]}  Qd7 {[%clk 0:02:28]} 16. f4 {[%clk 0:02:43]}  Ng4 {[%clk 0:02:28]} 17. Bd4 {[%clk 0:02:43]}  h5 {[%clk 0:02:02]} 18. h3 {[%clk 0:02:39]}  Nh6 {[%clk 0:02:02]} 19. Ne4 {[%clk 0:02:37]}  Nf5 {[%clk 0:01:56]} 20. Bxg7 {[%clk 0:02:30]}  Kxg7 {[%clk 0:01:57]} 21. Rae1 {[%clk 0:02:26]}  c6 {[%clk 0:01:54]} 22. Re2 {[%clk 0:02:23]}  cxd5 {[%clk 0:01:54]} 23. Qxd5 {[%clk 0:02:24]}  Qc6 {[%clk 0:01:50]} 24. Qd3 {[%clk 0:02:19]}  Rad8 {[%clk 0:01:47]} 25. g4 {[%clk 0:02:13]}  hxg4 {[%clk 0:01:46]} 26. hxg4 {[%clk 0:02:14]}  Nh6 {[%clk 0:01:19]} 27. Kg3 {[%clk 0:02:12]}  d5 {[%clk 0:01:14]} 28. cxd5 {[%clk 0:01:38]}  Rxd5 {[%clk 0:01:10]} 29. Qf3 {[%clk 0:01:38]}  Qd7 {[%clk 0:01:08]} 30. Re3 {[%clk 0:01:29]}  Rd4 {[%clk 0:00:59]} 31. Rfe1 {[%clk 0:01:20]}  Rd8 {[%clk 0:00:41]} 32. Nc5 {[%clk 0:01:18]}  Qc7 {[%clk 0:00:37]} 33. Ne4 {[%clk 0:01:07]}  b6 {[%clk 0:00:30]} 34. Kg2 {[%clk 0:01:02]}  Ng8 {[%clk 0:00:29]} 35. f5 {[%clk 0:01:00]}  Qc6 {[%clk 0:00:24]} 36. Rh1 {[%clk 0:00:47]}  Nf6 {[%clk 0:00:18]} 37. Nxf6 {[%clk 0:00:41]}  Qxf3+ {[%clk 0:00:17]} 38. Kxf3 {[%clk 0:00:42]}  Kxf6 {[%clk 0:00:17]} 39. fxg6 {[%clk 0:00:42]}  fxg6 {[%clk 0:00:18]} 40. Rhe1 {[%clk 0:00:40]}  R8d7 {[%clk 0:00:19]} 41. Rc1 {[%clk 0:00:38]}  Kf7 {[%clk 0:00:15]} 42. Rc8 {[%clk 0:00:36]}  R4d6 {[%clk 0:00:14]} 43. Ra8 {[%clk 0:00:35]}  Rf6+ {[%clk 0:00:14]} 44. Kg3 {[%clk 0:00:35]}  Rfd6 {[%clk 0:00:12]} 45. f3 {[%clk 0:00:34]}  a5 {[%clk 0:00:12]} 46. a3 {[%clk 0:00:33]}  Rc7 {[%clk 0:00:12]} 47. Rh8 {[%clk 0:00:26]}  Kg7 {[%clk 0:00:12]} 48. Rb8 {[%clk 0:00:25]}  Kf7 {[%clk 0:00:12]} 49. b4 {[%clk 0:00:25]}  axb4 {[%clk 0:00:11]} 50. axb4 {[%clk 0:00:26]}  Rcd7 {[%clk 0:00:11]} 51. b5 {[%clk 0:00:24]}  Rc7 {[%clk 0:00:11]} 52. Re4 {[%clk 0:00:23]}  Ra7 {[%clk 0:00:08]} 53. Re5 {[%clk 0:00:21]}  Rc7 {[%clk 0:00:07]} 54. Re4 {[%clk 0:00:18]}  Ra7 {[%clk 0:00:07]} 55. Kf4 {[%clk 0:00:19]}  Rf6+ {[%clk 0:00:07]} 56. Kg3 {[%clk 0:00:19]}  Ra3 {[%clk 0:00:06]} 57. Rf4 {[%clk 0:00:19]}  Rxf4 {[%clk 0:00:01]} 58. Kxf4 {[%clk 0:00:20]}  Rb3 {[%clk 0:00:02]} 59. Rxb6 {[%clk 0:00:20]}  Rb4+ {[%clk 0:00:03]} 60. Kg5 {[%clk 0:00:20]}  Rb3 {[%clk 0:00:03]} 61. f4 {[%clk 0:00:20]}  Rb1 {[%clk 0:00:02]} 62. Rb8 {[%clk 0:00:20]}  Rb4 {[%clk 0:00:02]} 63. b6 {[%clk 0:00:21]}  Rb5+ {[%clk 0:00:03]} 64. Kh4 {[%clk 0:00:18]}  Rb4 {[%clk 0:00:03]} 65. Kg5 {[%clk 0:00:18]}  Rb5+ {[%clk 0:00:03]} 66. Kh6 {[%clk 0:00:17]}  Rb4 {[%clk 0:00:04]} 67. b7 {[%clk 0:00:10]}  Rb6 {[%clk 0:00:02]} 68. Kh7 {[%clk 0:00:10]}  Rb3 {[%clk 0:00:02]} 69. Kh6 {[%clk 0:00:08]}  Rb6 {[%clk 0:00:02]} 70. Kg5 {[%clk 0:00:08]}  Rb5+ {[%clk 0:00:02]} 71. Kh4 {[%clk 0:00:08]}  Rb4 {[%clk 0:00:02]} 72. Kg3 {[%clk 0:00:09]}  Rb3+ {[%clk 0:00:03]} 73. Kf2 {[%clk 0:00:10]}  Rb4 {[%clk 0:00:04]} 74. Ke2 {[%clk 0:00:10]}  Ke6 {[%clk 0:00:02]} 75. Ke3 {[%clk 0:00:10]}  Kd7 {[%clk 0:00:02]} 76. Rg8 {[%clk 0:00:09]}  Rxb7 {[%clk 0:00:02]} 77. Rxg6 {[%clk 0:00:09]}  Ke8 {[%clk 0:00:03]} 78. Rg7 {[%clk 0:00:09]}  Kf8 {[%clk 0:00:03]} 79. Rh7 {[%clk 0:00:10]}  Rb3+ {[%clk 0:00:03]} 80. Ke4 {[%clk 0:00:10]}  Rb5 {[%clk 0:00:04]} 81. f5 {[%clk 0:00:10]}  Ra5 {[%clk 0:00:04]} 82. Kf4 {[%clk 0:00:10]}  Ra6 {[%clk 0:00:04]} 83. Rh1 {[%clk 0:00:10]}  Rb6 {[%clk 0:00:04]} 84. Ra1 {[%clk 0:00:10]}  Kf7 {[%clk 0:00:03]} 85. Ra7 {[%clk 0:00:09]}  Kf6 {[%clk 0:00:03]} 86. g5+ {[%clk 0:00:10]}  Kf7 {[%clk 0:00:03]} 87. Ra4 {[%clk 0:00:10]}  Rb5 {[%clk 0:00:03]} 88. Kg4 {[%clk 0:00:10]}  Rb6 {[%clk 0:00:03]} 89. Rf4 {[%clk 0:00:11]}  Rb1 {[%clk 0:00:03]} 90. Re4 {[%clk 0:00:11]}  Rg1+ {[%clk 0:00:04]} 91. Kh5 {[%clk 0:00:10]}  Rh1+ {[%clk 0:00:04]} 92. Rh4 {[%clk 0:00:10]}  Rg1 {[%clk 0:00:04]} 93. Re4 {[%clk 0:00:10]}  Rh1+ {[%clk 0:00:03]} 94. Kg4 {[%clk 0:00:11]}  Rg1+ {[%clk 0:00:04]} 95. Kf4 {[%clk 0:00:11]}  Ra1 {[%clk 0:00:03]} 96. Rb4 {[%clk 0:00:11]}  Ra5 {[%clk 0:00:03]} 97. g6+ {[%clk 0:00:10]}  Kf6 {[%clk 0:00:03]} 98. Rb6+ {[%clk 0:00:10]}  Kg7 {[%clk 0:00:04]} 99. Kg5 {[%clk 0:00:10]}  Re5 {[%clk 0:00:02]} 100. Rb7 {[%clk 0:00:10]}  Re1 {[%clk 0:00:02]} 101. f6+ {[%clk 0:00:10]}  Kf8 {[%clk 0:00:02]} 102. Rb8# {[%clk 0:00:11]} 1-0


[Site "https://www.chess.com"]

[Event "Titled Tuesday Blitz April 25 Early 2023"]
[White "Vlassov, Nikolai"]
[Black "Gurevich, Dmitry"]
[WhiteFideId "4103360"]
[BlackFideId "2000407"]
[WhiteElo "2324"]
[BlackElo "2506"]
[Result "1-0"]
[Round "07"]
[TimeControl "180+2"]
[Date "2023.04.25"]
[WhiteClock "0:00:23"]
[BlackClock "0:00:14"]

1. e4 {[%clk 0:03:00]}  c5 {[%clk 0:02:59]} 2. c3 {[%clk 0:03:00]}  d5 {[%clk 0:02:53]} 3. exd5 {[%clk 0:03:00]}  Qxd5 {[%clk 0:02:53]} 4. d4 {[%clk 0:02:59]}  g6 {[%clk 0:02:52]} 5. dxc5 {[%clk 0:02:59]}  Qxc5 {[%clk 0:02:48]} 6. Be3 {[%clk 0:02:58]}  Qc7 {[%clk 0:02:47]} 7. Bxa7 {[%clk 0:02:57]}  Rxa7 {[%clk 0:02:47]} 8. Qd4 {[%clk 0:02:57]}  Nf6 {[%clk 0:02:47]} 9. Qxa7 {[%clk 0:02:57]}  Nc6 {[%clk 0:02:40]} 10. Qe3 {[%clk 0:02:50]}  Bg7 {[%clk 0:02:26]} 11. Nf3 {[%clk 0:02:50]}  Nd5 {[%clk 0:02:14]} 12. Qe4 {[%clk 0:02:43]}  Nf6 {[%clk 0:02:04]} 13. Qh4 {[%clk 0:02:34]}  O-O {[%clk 0:01:54]} 14. Be2 {[%clk 0:02:28]}  Qb6 {[%clk 0:01:50]} 15. b3 {[%clk 0:02:26]}  Nb4 {[%clk 0:01:26]} 16. Na3 {[%clk 0:01:55]}  Nfd5 {[%clk 0:01:23]} 17. O-O {[%clk 0:01:55]}  Nxc3 {[%clk 0:01:19]} 18. Bc4 {[%clk 0:01:36]}  Ncxa2 {[%clk 0:01:08]} 19. Rae1 {[%clk 0:01:29]}  e6 {[%clk 0:01:06]} 20. Ng5 {[%clk 0:01:27]}  h6 {[%clk 0:01:05]} 21. Ne4 {[%clk 0:01:27]}  Nc3 {[%clk 0:00:52]} 22. Nxc3 {[%clk 0:01:19]}  Bxc3 {[%clk 0:00:51]} 23. Re3 {[%clk 0:01:19]}  Bg7 {[%clk 0:00:48]} 24. Nb5 {[%clk 0:01:18]}  Bd7 {[%clk 0:00:45]} 25. Nc3 {[%clk 0:01:12]}  Nc2 {[%clk 0:00:41]} 26. Rd3 {[%clk 0:01:07]}  Nd4 {[%clk 0:00:39]} 27. h3 {[%clk 0:00:57]}  Bc6 {[%clk 0:00:35]} 28. Re1 {[%clk 0:00:52]}  Ra8 {[%clk 0:00:30]} 29. Ne4 {[%clk 0:00:39]}  Nf5 {[%clk 0:00:29]} 30. Qf4 {[%clk 0:00:37]}  Ra2 {[%clk 0:00:25]} 31. Rd2 {[%clk 0:00:33]}  Ra8 {[%clk 0:00:19]} 32. Nd6 {[%clk 0:00:28]}  Nxd6 {[%clk 0:00:16]} 33. Qxd6 {[%clk 0:00:27]}  Bc3 {[%clk 0:00:14]} 34. Rxe6 {[%clk 0:00:23]} 1-0


[Site "https://www.chess.com"]

[Event "Titled Tuesday Blitz April 25 Early 2023"]
[White "Salman, Pavel"]
[Black "Buscar, Michael"]
[WhiteFideId "24153753"]
[BlackFideId "2603616"]
[WhiteElo "2187"]
[BlackElo "2010"]
[Result "1-0"]
[Round "07"]
[TimeControl "180+2"]
[Date "2023.04.25"]
[WhiteClock "0:01:13"]
[BlackClock "0:01:07"]

1. d4 {[%clk 0:02:59]}  Nf6 {[%clk 0:02:59]} 2. Nc3 {[%clk 0:02:53]}  d5 {[%clk 0:02:57]} 3. Bf4 {[%clk 0:02:53]}  e6 {[%clk 0:02:56]} 4. Nb5 {[%clk 0:02:52]}  Na6 {[%clk 0:02:55]} 5. e3 {[%clk 0:02:51]}  c6 {[%clk 0:02:55]} 6. Nc3 {[%clk 0:02:51]}  Nc7 {[%clk 0:02:54]} 7. Bd3 {[%clk 0:02:50]}  Bd6 {[%clk 0:02:54]} 8. Nge2 {[%clk 0:02:50]}  O-O {[%clk 0:02:54]} 9. f3 {[%clk 0:02:46]}  Nce8 {[%clk 0:02:54]} 10. Qd2 {[%clk 0:02:45]}  Bxf4 {[%clk 0:02:52]} 11. Nxf4 {[%clk 0:02:45]}  Nd6 {[%clk 0:02:52]} 12. g4 {[%clk 0:02:44]}  Qe7 {[%clk 0:02:43]} 13. O-O-O {[%clk 0:02:42]}  e5 {[%clk 0:02:43]} 14. dxe5 {[%clk 0:02:41]}  Qxe5 {[%clk 0:02:43]} 15. Kb1 {[%clk 0:02:37]}  Re8 {[%clk 0:02:42]} 16. Rhe1 {[%clk 0:02:36]}  Nd7 {[%clk 0:02:37]} 17. h4 {[%clk 0:02:26]}  Nc5 {[%clk 0:02:33]} 18. Bf1 {[%clk 0:02:23]}  Ne6 {[%clk 0:02:31]} 19. Nd3 {[%clk 0:02:20]}  Qf6 {[%clk 0:02:29]} 20. Qf2 {[%clk 0:02:17]}  b5 {[%clk 0:02:19]} 21. g5 {[%clk 0:02:07]}  Qf5 {[%clk 0:02:12]} 22. Ne2 {[%clk 0:01:58]}  Nc4 {[%clk 0:01:57]} 23. Nd4 {[%clk 0:01:55]}  Nxd4 {[%clk 0:01:55]} 24. exd4 {[%clk 0:01:56]}  Bd7 {[%clk 0:01:43]} 25. b3 {[%clk 0:01:16]}  Rxe1 {[%clk 0:01:21]} 26. Rxe1 {[%clk 0:01:16]}  Nd6 {[%clk 0:01:13]} 27. Re5 {[%clk 0:01:13]}  Qg6 {[%clk 0:01:07]} 28. Nf4 {[%clk 0:01:13]} 1-0


[Site "https://www.chess.com"]